bitfinex-derivatives/quotes_BTCF0:USTF0_20260104
["timestamp","ask_amount","ask_price","bid_price","bid_amount"]
[1767569736244,0.02153331,91469.0,91459.0,0.010938]
[1767569736444,0.02331465,91475.0,91456.0,0.09384704]
[1767569736633,0.00016394,91479.0,91456.0,0.09384704]
[1767569736948,0.00016394,91479.0,91457.0,0.08184704]
[1767569737654,0.00016394,91479.0,91456.0,0.02483372]
[1767569737949,0.00016394,91479.0,91455.0,0.093]
[1767569737950,0.02331465,91477.0,91457.0,0.010938]
[1767569738339,0.010936,91476.0,91457.0,0.010938]
[1767569739254,0.02331465,91477.0,91457.0,0.010938]
[1767569739452,0.02323462,91476.0,91457.0,0.010938]
[1767569739650,0.02331465,91477.0,91457.0,0.010938]
[1767569739850,0.02323461,91476.0,91457.0,0.010938]
[1767569740043,0.02331465,91477.0,91457.0,0.010938]
[1767569740350,0.0232346,91476.0,91457.0,0.010938]
[1767569740552,0.02323587,91475.0,91457.0,0.010938]
[1767569740753,0.02331465,91474.0,91455.0,0.18684704]
[1767569741657,0.09690528,91478.0,91447.0,0.0588289]
[1767569741658,0.02331465,91463.0,91447.0,0.0588289]
[1767569741841,0.010938,91460.0,91446.0,0.1518289]
[1767569742153,0.02331465,91460.0,91439.0,0.06101616]
[1767569742451,0.18990528,91463.0,91439.0,0.00218726]
[1767569742452,0.02331465,91458.0,91439.0,0.00218726]
[1767569743056,0.02347859,91458.0,91440.0,0.010941]
[1767569743256,0.03441659,91458.0,91439.0,0.00218726]
[1767569743454,0.02331465,91457.0,91439.0,0.00218726]
[1767569743857,0.02331465,91457.0,91440.0,0.010941]
[1767569744558,0.02331465,91457.0,91438.0,0.07918726]
[1767569745757,0.02331465,91457.0,91439.0,0.010941]
[1767569747158,0.02331465,91457.0,91438.0,0.07918726]
[1767569747159,0.010939,91456.0,91438.0,0.07918726]
[1767569747359,0.03425365,91456.0,91438.0,0.07918726]
[1767569749044,0.02331465,91456.0,91439.0,0.010941]
[1767569749447,0.02331465,91456.0,91438.0,0.07918726]
[1767569750344,0.02331465,91456.0,91439.0,0.010941]
[1767569750965,0.02331465,91456.0,91439.0,0.10478804]
[1767569752254,0.03425365,91455.0,91439.0,0.09384704]
[1767569752458,0.03425365,91455.0,91439.0,0.08384704]
[1767569753054,0.02331465,91455.0,91439.0,0.08384704]
[1767569753962,0.02331465,91455.0,91433.0,0.010941]
[1767569753963,0.02331465,91451.0,91433.0,0.093]
[1767569754665,0.03425365,91451.0,91433.0,0.18684704]
[1767569755763,0.02331465,91449.0,91426.0,0.09384704]
[1767569756060,0.02331465,91449.0,91429.0,0.09384704]
[1767569757254,0.02331465,91449.0,91431.0,0.010942]
[1767569760261,0.02331465,91449.0,91429.0,0.09278904]
[1767569760564,0.093,91453.0,91440.0,0.03390051]
[1767569760764,0.093,91453.0,91436.0,0.02295951]
[1767569761065,0.093,91453.0,91436.0,0.03390051]
[1767569761762,0.093,91453.0,91428.0,0.093]
[1767569761763,0.093,91453.0,91433.0,0.010941]
[1767569762164,0.093,91453.0,91428.0,0.093]
[1767569762165,0.01094,91444.0,91428.0,0.093]
[1767569762364,0.01094,91447.0,91429.0,0.010942]
[1767569762665,0.03404881,91451.0,91432.0,0.010942]
[1767569762848,0.03404881,91451.0,91432.0,0.10187076]
[1767569763854,0.093,91453.0,91440.0,0.09092876]
[1767569765368,0.093,91453.0,91440.0,0.10186876]
[1767569767966,0.093,91453.0,91440.0,0.08986876]
[1767569768565,0.11610981,91453.0,91435.0,0.010941]
[1767569768866,0.01094,91448.0,91431.0,0.010942]
[1767569769361,0.02310981,91449.0,91431.0,0.010942]
[1767569769565,0.02310981,91449.0,91433.0,0.010941]
[1767569772461,0.02310981,91449.0,91432.0,0.09092876]
[1767569773361,0.02310981,91449.0,91432.0,0.10186976]
[1767569773763,0.02310981,91442.0,91425.0,0.0697709]
[1767569773960,0.02310981,91440.0,91424.0,0.09092876]
[1767569774161,0.02310981,91440.0,91427.0,0.010942]
[1767569774361,0.02310981,91440.0,91424.0,0.09092876]
[1767569774670,0.00016403,91441.0,91428.0,0.010942]
[1767569775264,0.00016403,91441.0,91424.0,0.09092876]
[1767569775462,0.00016403,91441.0,91427.0,0.010942]
[1767569775670,0.00016403,91441.0,91424.0,0.08687076]
[1767569776473,0.00016403,91441.0,91429.0,0.010942]
[1767569776969,0.00016403,91441.0,91429.0,0.03390151]
[1767569777367,0.02310981,91457.0,91430.0,0.02295951]
[1767569777564,0.11627401,91456.0,91430.0,0.02295951]
[1767569777766,0.12721301,91455.0,91437.0,0.09092876]
[1767569777966,0.103939,91455.0,91437.0,0.09092876]
[1767569778269,0.02327413,91454.0,91437.0,0.09092876]
[1767569778469,0.09485151,91450.0,91437.0,0.09092876]
[1767569779473,0.09485151,91450.0,91438.0,0.010941]
[1767569779777,0.09485151,91450.0,91437.0,0.09092876]
[1767569780169,0.09485151,91450.0,91438.0,0.010941]
[1767569780367,0.09485151,91450.0,91437.0,0.09092876]
[1767569781175,0.09485151,91450.0,91437.0,0.10186976]
[1767569783368,0.09485151,91450.0,91437.0,0.07986976]
[1767569785578,0.09485151,91450.0,91437.0,0.06892876]
[1767569788071,0.09485151,91450.0,91438.0,0.010941]
[1767569790280,0.01094,91446.0,91431.0,0.02295951]
[1767569790475,0.02066589,91439.0,91425.0,0.0588289]
[1767569790680,0.1155174,91437.0,91423.0,0.0697719]
[1767569790879,0.09485151,91433.0,91423.0,0.010943]
[1767569791077,0.09485151,91433.0,91419.0,0.0488289]
[1767569791282,0.09485151,91430.0,91420.0,0.093]
[1767569791579,0.09485151,91430.0,91419.0,0.093]
[1767569791775,0.02066589,91429.0,91409.0,0.00012958]
[1767569791974,0.02066589,91429.0,91411.0,0.010944]
[1767569791975,0.09485151,91420.0,91411.0,0.010944]
[1767569792175,0.02066589,91425.0,91411.0,0.010944]
[1767569792381,0.03160789,91429.0,91411.0,0.010944]
[1767569792581,0.02066589,91428.0,91411.0,0.010944]
[1767569792782,0.02066589,91428.0,91415.0,0.010943]
[1767569793177,0.02066589,91424.0,91409.0,0.00012958]
[1767569793378,0.11339346,91418.0,91405.0,0.09304]
[1767569793578,0.02066589,91417.0,91402.0,0.09304]
[1767569793775,0.02066589,91415.0,91396.0,0.09275717]
[1767569793992,0.02066589,91415.0,91392.0,0.02129014]
[1767569793993,0.09485151,91406.0,91393.0,0.010946]
[1767569794198,0.02066589,91408.0,91392.0,0.09304]
[1767569794405,8.547e-05,91407.0,91398.0,0.010946]
[1767569795402,8.547e-05,91407.0,91401.0,0.010945]
[1767569798804,8.547e-05,91407.0,91395.0,0.10784989]
[1767569800208,8.547e-05,91407.0,91401.0,0.010945]
[1767569801808,0.09485151,91420.0,91401.0,0.11063852]
[1767569802002,0.09485151,91420.0,91401.0,0.12685022]
[1767569802509,0.02210785,91419.0,91401.0,0.12685022]
[1767569802709,0.02210785,91419.0,91401.0,0.11063852]
[1767569802910,4.411e-05,91418.0,91401.0,0.11063852]
[1767569804521,0.02210785,91417.0,91401.0,0.010945]
[1767569806616,0.09485151,91411.0,91398.0,0.11185022]
[1767569807015,0.09485151,91411.0,91401.0,0.010945]
[1767569807511,0.09485151,91411.0,91398.0,0.12279622]
[1767569808915,0.09485151,91411.0,91398.0,0.09969352]
[1767569809118,0.09485151,91411.0,91387.0,0.02192555]
[1767569809119,0.02210785,91406.0,91387.0,0.02192555]
[1767569809309,0.11695936,91402.0,91388.0,0.09304]
[1767569809508,4.411e-05,91401.0,91388.0,0.09304]
[1767569810319,0.010944,91412.0,91396.0,0.12138074]
[1767569810520,0.09485151,91410.0,91396.0,0.12138074]
[1767569810911,0.09304,91413.0,91396.0,0.12138074]
[1767569811112,0.09485151,91410.0,91396.0,0.12138074]
[1767569812221,0.09485151,91410.0,91399.0,0.010945]
[1767569813116,0.09485151,91410.0,91396.0,0.12138074]
[1767569813616,0.09485151,91410.0,91396.0,0.11063952]
[1767569814215,0.09485151,91410.0,91398.0,0.010945]
[1767569814720,0.09304,91416.0,91401.0,0.01050614]
[1767569814922,0.11514785,91419.0,91401.0,0.01050614]
[1767569816230,0.11514785,91419.0,91405.0,0.010945]
[1767569816722,0.11514785,91419.0,91407.0,0.010944]
[1767569817220,0.09304,91426.0,91406.0,0.09969352]
[1767569817426,0.010942,91426.0,91410.0,0.010944]
[1767569817627,0.09485151,91420.0,91410.0,0.010944]
[1767569818510,0.09304,91427.0,91410.0,0.010944]
[1767569818711,0.02328697,91426.0,91410.0,0.010944]
[1767569819026,0.02328697,91425.0,91410.0,0.010944]
[1767569819223,0.02328697,91424.0,91410.0,0.010944]
[1767569819523,0.02328697,91423.0,91410.0,0.010944]
[1767569819721,0.02210785,91425.0,91408.0,0.09969352]
[1767569819926,0.02329987,91424.0,91408.0,0.09969352]
[1767569820122,0.010943,91416.0,91402.0,0.09969352]
[1767569820322,0.02344162,91407.0,91397.0,0.09304]
[1767569820625,0.02344162,91411.0,91397.0,0.09304]
[1767569821426,0.02344162,91411.0,91395.0,0.010946]
[1767569822118,0.02344162,91411.0,91394.0,0.092986]
[1767569822620,0.02344162,91411.0,91395.0,0.010946]
[1767569823025,0.010942,91429.0,91388.0,0.010947]
[1767569823026,0.02344162,91406.0,91388.0,0.010947]
[1767569823230,0.02344162,91404.0,91389.0,0.09304]
[1767569824020,0.02344162,91404.0,91389.0,0.103987]
[1767569824221,0.010944,91409.0,91389.0,0.103987]
[1767569824222,0.02344162,91408.0,91389.0,0.103987]
[1767569824430,0.02344162,91408.0,91389.0,0.09304]
[1767569825831,0.02344162,91408.0,91389.0,0.103987]
[1767569826030,0.03438562,91408.0,91389.0,0.103987]
[1767569826830,0.02344162,91391.0,91369.0,0.13411273]
[1767569827130,0.02344162,91391.0,91374.0,0.010948]
[1767569827826,0.02344162,91391.0,91372.0,0.21620373]
[1767569828723,0.010947,91390.0,91373.0,0.010949]
[1767569828923,0.010947,91390.0,91372.0,0.21620373]
[1767569829125,0.03438862,91386.0,91368.0,0.09304]
[1767569829630,0.02344162,91385.0,91367.0,0.1919474]
[1767569829827,0.02344162,91385.0,91367.0,0.1759474]
[1767569830232,0.02344162,91385.0,91368.0,0.010949]
[1767569830533,0.02344162,91374.0,91351.0,0.00013064]
[1767569830728,0.02344162,91374.0,91351.0,0.02438697]
[1767569830928,0.02344162,91374.0,91356.0,0.01095]
[1767569832328,0.02344162,91374.0,91359.0,0.01095]
[1767569832522,0.02344162,91374.0,91357.0,0.01095]
[1767569832731,0.02344162,91366.0,91353.0,0.010951]
[1767569833436,0.09766251,91367.0,91353.0,0.010951]
[1767569833837,0.02344162,91370.0,91353.0,0.010951]
[1767569834434,0.02344162,91369.0,91352.0,0.010951]
[1767569835038,0.02344162,91368.0,91352.0,0.010951]
[1767569835536,0.02344162,91368.0,91355.0,0.010951]
[1767569835838,0.09766251,91369.0,91355.0,0.010951]
[1767569837125,0.09766251,91369.0,91351.0,0.00013064]
[1767569837332,0.19074251,91375.0,91361.0,0.00795]
[1767569837633,0.21418413,91375.0,91357.0,0.01095]
[1767569837836,0.02344162,91374.0,91357.0,0.01095]
[1767569838338,0.02344162,91373.0,91360.0,0.01095]
[1767569838537,0.02344162,91373.0,91363.0,0.01095]
[1767569838932,0.02344162,91373.0,91359.0,0.01095]
[1767569839340,0.09308,91375.0,91355.0,0.010951]
[1767569839341,0.02344162,91369.0,91355.0,0.010951]
[1767569839535,0.02344162,91362.0,91351.0,0.00013064]
[1767569839735,0.09766251,91360.0,91351.0,0.00013064]
[1767569840240,0.02344162,91359.0,91351.0,0.00013064]
[1767569840840,0.02344162,91363.0,91354.0,0.010951]
[1767569841139,0.09308,91365.0,91354.0,0.010951]
[1767569842543,0.09308,91365.0,91351.0,0.00013064]
[1767569842842,0.02344162,91361.0,91355.0,0.010951]
[1767569843030,0.09308,91365.0,91355.0,0.010951]
[1767569843234,0.09308,91365.0,91351.0,0.00013064]
[1767569843732,0.11652162,91365.0,91351.0,0.00013064]
[1767569844141,0.010947,91386.0,91367.0,0.010949]
[1767569844441,0.09308,91385.0,91362.0,0.12316373]
[1767569844638,0.09308,91384.0,91364.0,0.01095]
[1767569845238,0.09308,91384.0,91362.0,0.12316373]
[1767569845843,0.09308,91384.0,91362.0,0.0989074]
[1767569846041,0.010944,91413.0,91362.0,0.0989074]
[1767569846245,0.02344162,91388.0,91372.0,0.010949]
[1767569846434,0.11652162,91387.0,91372.0,0.010949]
[1767569846636,0.02344162,91386.0,91368.0,0.010949]
[1767569847138,0.02344162,91386.0,91370.0,0.010949]
[1767569847445,0.02344162,91386.0,91372.0,0.010949]
[1767569848342,0.09308,91387.0,91369.0,0.02425633]
[1767569848535,0.12110413,91394.0,91372.0,0.12316373]
[1767569848842,0.09308,91393.0,91376.0,0.010948]
[1767569849036,0.09308,91393.0,91365.0,0.09308]
[1767569849037,0.09308,91393.0,91380.0,0.010948]
[1767569852847,0.09308,91393.0,91380.0,0.005948]
[1767569856353,0.11691511,91393.0,91380.0,0.005948]
[1767569858866,0.02383511,91392.0,91380.0,0.005948]
[1767569860454,0.02383511,91392.0,91374.0,0.0948554]
[1767569861165,0.02383511,91392.0,91380.0,0.010948]
[1767569865868,0.09308,91393.0,91381.0,0.010948]
[1767569867459,0.11691511,91393.0,91381.0,0.010948]
[1767569868265,0.02383511,91392.0,91374.0,0.0858034]
[1767569870162,0.02383511,91392.0,91378.0,0.010948]
[1767569873465,0.09308,91393.0,91371.0,0.010949]
[1767569873671,0.02383511,91380.0,91368.0,0.09308]
[1767569874368,0.02383511,91375.0,91366.0,0.09308]
[1767569874571,0.02383511,91375.0,91363.0,0.01095]
[1767569874870,0.02383511,91375.0,91364.0,0.09308]
[1767569875267,0.02383511,91381.0,91364.0,0.09308]
[1767569875972,0.02383511,91381.0,91364.0,0.07808]
[1767569876173,0.02383511,91381.0,91367.0,0.010949]
[1767569877170,0.02383511,91392.0,91371.0,0.11409097]
[1767569877367,0.02372487,91391.0,91376.0,0.010948]
[1767569877568,0.02372487,91390.0,91374.0,0.11409097]
[1767569877770,0.02383511,91392.0,91374.0,0.0900256]
[1767569877970,0.04756314,91391.0,91374.0,0.0900256]
[1767569878276,0.02372803,91390.0,91374.0,0.0900256]
[1767569878478,0.02372803,91389.0,91374.0,0.0900256]
[1767569878775,0.02372803,91388.0,91374.0,0.0900256]
[1767569878975,0.02383511,91391.0,91374.0,0.1009736]
[1767569879171,0.023733,91390.0,91374.0,0.1009736]
[1767569879367,0.023733,91389.0,91377.0,0.010948]
[1767569879568,0.023733,91388.0,91377.0,0.010948]
[1767569879767,0.02383511,91391.0,91377.0,0.010948]
[1767569879968,0.02373303,91390.0,91377.0,0.010948]
[1767569880269,0.02373303,91389.0,91377.0,0.010948]
[1767569880469,0.02373303,91388.0,91377.0,0.010948]
[1767569880674,0.11859943,91390.0,91377.0,0.010948]
[1767569880873,0.02373313,91389.0,91377.0,0.010948]
[1767569881179,0.02373313,91388.0,91377.0,0.010948]
[1767569881474,0.11859943,91390.0,91377.0,0.010948]
[1767569881676,0.02373283,91389.0,91377.0,0.010948]
[1767569881878,0.02373283,91388.0,91377.0,0.010948]
[1767569882072,0.11859943,91390.0,91377.0,0.010948]
[1767569882272,0.02373283,91389.0,91377.0,0.010948]
[1767569882570,0.02373283,91388.0,91377.0,0.010948]
[1767569882875,0.11859943,91390.0,91377.0,0.010948]
[1767569883077,0.02373253,91389.0,91377.0,0.010948]
[1767569883277,0.02373253,91388.0,91377.0,0.010948]
[1767569883477,0.11859943,91390.0,91377.0,0.010948]
[1767569883776,0.02373224,91389.0,91374.0,0.0869736]
[1767569883963,0.02373224,91388.0,91374.0,0.0869736]
[1767569884168,0.11859943,91390.0,91377.0,0.010948]
[1767569884369,0.02373219,91389.0,91377.0,0.010948]
[1767569884668,0.02373219,91388.0,91379.0,0.010948]
[1767569884865,0.09308,91393.0,91386.0,0.010947]
[1767569885071,0.1167091,91400.0,91388.0,0.010947]
[1767569887677,0.0236291,91397.0,91385.0,0.010947]
[1767569887878,0.0236291,91397.0,91382.0,0.010947]
[1767569888066,0.0236291,91397.0,91384.0,0.010947]
[1767569888671,0.18805033,91400.0,91384.0,0.010947]
[1767569888879,0.21167943,91400.0,91384.0,0.010947]
[1767569889183,0.0236291,91400.0,91386.0,0.010947]
[1767569889380,0.09308,91407.0,91390.0,0.11915562]
[1767569889572,0.09308,91407.0,91392.0,0.09536588]
[1767569890272,0.09308,91407.0,91393.0,0.010946]
[1767569891486,0.09308,91407.0,91392.0,0.09536588]
[1767569891487,0.09308,91407.0,91392.0,0.09431188]
[1767569891778,0.010944,91414.0,91395.0,0.010946]
[1767569892084,0.0236291,91418.0,91397.0,0.03513129]
[1767569892382,0.0236291,91418.0,91400.0,0.010945]
[1767569892579,0.0236291,91418.0,91399.0,0.010945]
[1767569892974,0.0236291,91417.0,91399.0,0.010945]
[1767569893684,0.0236291,91416.0,91399.0,0.010945]
[1767569893978,0.0236291,91416.0,91400.0,0.010945]
[1767569894180,0.0236291,91416.0,91397.0,0.11955117]
[1767569894484,0.0236291,91416.0,91397.0,0.21263117]
[1767569894875,0.0236291,91419.0,91399.0,0.11955117]
[1767569895275,0.0236291,91418.0,91401.0,0.010945]
[1767569896980,0.04710453,91417.0,91401.0,0.010945]
[1767569897187,0.04710453,91416.0,91401.0,0.010945]
[1767569897376,0.0236291,91416.0,91401.0,0.010945]
[1767569898883,0.0345721,91416.0,91399.0,0.09536588]
[1767569899191,0.0236291,91406.0,91397.0,0.07708]
[1767569899684,0.0236291,91410.0,91397.0,0.07708]
[1767569899990,0.11761061,91419.0,91399.0,0.11955117]
[1767569900185,0.09308,91421.0,91402.0,0.13049617]
[1767569900587,0.1167091,91421.0,91402.0,0.13049617]
[1767569900782,0.0236291,91420.0,91402.0,0.10631088]
[1767569901985,0.11859943,91420.0,91402.0,0.10631088]
[1767569902387,0.0236291,91420.0,91402.0,0.10631088]
[1767569902891,0.11859943,91420.0,91402.0,0.13049617]
[1767569903289,0.09497033,91420.0,91403.0,0.11955117]
[1767569903478,0.09308,91421.0,91403.0,0.11955117]
[1767569903685,0.09308,91421.0,91407.0,0.010944]
[1767569903884,0.0236291,91420.0,91400.0,0.09497033]
[1767569905287,0.0236291,91420.0,91401.0,0.010945]
[1767569905688,0.09308,91421.0,91405.0,0.11955117]
[1767569906780,0.09308,91421.0,91405.0,0.08536588]
[1767569906981,0.1167091,91421.0,91406.0,0.010945]
[1767569907696,0.1167091,91421.0,91402.0,0.010945]
[1767569907995,0.0236291,91420.0,91402.0,0.010945]
[1767569909496,0.0236291,91420.0,91402.0,0.13049617]
[1767569909799,0.0236291,91420.0,91402.0,0.10631088]
[1767569913499,0.0236291,91420.0,91402.0,0.12921034]
[1767569914496,0.0236291,91420.0,91402.0,0.11421034]
[1767569914903,0.0345721,91420.0,91402.0,0.12515534]
[1767569915802,0.12954243,91420.0,91402.0,0.12515534]
[1767569916095,0.12954243,91420.0,91389.0,9.3e-07]
[1767569916096,0.02166213,91418.0,91389.0,9.3e-07]
[1767569916297,0.19106499,91420.0,91379.0,9.3e-07]
[1767569916298,0.010947,91387.0,91379.0,9.3e-07]
[1767569916499,0.02166213,91389.0,91371.0,0.09308]
[1767569916688,0.03260913,91387.0,91371.0,0.09308]
[1767569916894,0.010947,91384.0,91371.0,0.09308]
[1767569917503,0.02166213,91387.0,91371.0,0.09308]
[1767569918004,0.010947,91386.0,91371.0,0.09308]
[1767569918704,0.02166213,91387.0,91368.0,0.02194183]
[1767569918705,0.010947,91383.0,91368.0,0.02194183]
[1767569918896,0.010947,91383.0,91369.0,0.09308]
[1767569919890,0.010948,91379.0,91362.0,0.09255766]
[1767569920097,0.02166213,91379.0,91363.0,0.09308]
[1767569920294,0.02166213,91386.0,91365.0,0.02194183]
[1767569920499,0.09497033,91390.0,91373.0,0.11449949]
[1767569920694,0.02166213,91389.0,91374.0,0.09308]
[1767569920896,0.09497033,91390.0,91374.0,0.09308]
[1767569921204,0.10591733,91390.0,91375.0,0.11449949]
[1767569921707,0.10591733,91390.0,91375.0,0.09255766]
[1767569922202,0.09609466,91396.0,91375.0,0.09255766]
[1767569922400,0.02445965,91395.0,91380.0,0.010948]
[1767569922605,0.010946,91399.0,91381.0,0.02194183]
[1767569924294,0.010946,91399.0,91382.0,0.09255766]
[1767569924499,0.010946,91399.0,91383.0,0.11449949]
[1767569924700,0.010946,91399.0,91384.0,0.09308]
[1767569927106,0.010946,91399.0,91384.0,0.20757949]
[1767569928210,0.010946,91399.0,91385.0,0.11449949]
[1767569929916,0.09497033,91400.0,91385.0,0.11449949]
[1767569930111,0.010945,91405.0,91386.0,0.02194183]
[1767569930415,0.02495067,91404.0,91386.0,0.02194183]
[1767569930607,0.02495067,91403.0,91386.0,0.02194183]
[1767569930916,0.02495067,91402.0,91386.0,0.02194183]
[1767569931214,0.010945,91405.0,91386.0,0.02194183]
[1767569931404,0.02495097,91404.0,91388.0,0.02194183]
[1767569931605,0.00218798,91409.0,91401.0,0.02194183]
[1767569931800,0.010943,91419.0,91402.0,0.09308]
[1767569932117,0.02494688,91418.0,91402.0,0.09308]
[1767569932301,0.02494715,91417.0,91402.0,0.09308]
[1767569932506,0.010943,91417.0,91402.0,0.09308]
[1767569932913,0.010943,91417.0,91402.0,0.20757949]
[1767569936321,0.02495263,91416.0,91402.0,0.20757949]
[1767569936505,0.09497033,91412.0,91402.0,0.09308]
[1767569936706,0.02166213,91411.0,91402.0,0.09308]
[1767569936913,0.02166213,91411.0,91403.0,0.09308]
[1767569937416,0.09497033,91412.0,91403.0,0.09308]
[1767569937618,0.09497033,91412.0,91403.0,0.07108]
[1767569937819,0.09497033,91412.0,91394.0,0.11449949]
[1767569938122,0.010944,91411.0,91395.0,0.09308]
[1767569939613,0.11663246,91405.0,91396.0,0.09308]
[1767569939814,0.02166213,91404.0,91397.0,0.09308]
[1767569940013,0.03260613,91408.0,91398.0,0.09308]
[1767569940728,0.010944,91408.0,91398.0,0.09308]
[1767569943324,0.010944,91411.0,91398.0,0.09308]
[1767569943522,0.010944,91409.0,91398.0,0.09308]
[1767569944828,0.010945,91407.0,91398.0,0.09308]
[1767569945528,0.010945,91407.0,91396.0,0.08954051]
[1767569945724,0.010945,91407.0,91397.0,0.09308]
[1767569946024,0.010945,91407.0,91396.0,0.08954051]
[1767569946229,0.010945,91407.0,91397.0,0.09308]
[1767569946429,0.010944,91410.0,91397.0,0.09308]
[1767569947629,0.010944,91410.0,91397.0,0.206003]
[1767569948726,0.010944,91410.0,91397.0,0.112923]
[1767569949029,0.010944,91410.0,91398.0,0.09308]
[1767569952520,0.02499441,91409.0,91398.0,0.09308]
[1767569952729,0.010944,91410.0,91398.0,0.09308]
[1767569953023,0.0249944,91409.0,91398.0,0.09308]
[1767569953228,0.010944,91410.0,91398.0,0.08108]
[1767569953420,0.02499693,91409.0,91398.0,0.08108]
[1767569953622,0.010944,91410.0,91398.0,0.08108]
[1767569953820,0.02499693,91409.0,91398.0,0.08108]
[1767569954021,0.010944,91410.0,91398.0,0.08108]
[1767569954318,0.02499776,91409.0,91396.0,0.112923]
[1767569954523,0.02499776,91408.0,91397.0,0.09308]
[1767569954723,0.010944,91408.0,91397.0,0.09308]
[1767569955131,0.010944,91408.0,91396.0,0.112923]
[1767569955426,0.02495946,91414.0,91397.0,0.09308]
[1767569955634,0.010944,91408.0,91397.0,0.09308]
[1767569955930,0.010944,91411.0,91397.0,0.206003]
[1767569956230,0.02497085,91410.0,91398.0,0.09308]
[1767569956431,0.02497085,91409.0,91398.0,0.09308]
[1767569956625,0.02497085,91408.0,91398.0,0.09308]
[1767569956821,0.010944,91411.0,91398.0,0.09308]
[1767569957021,0.02497501,91410.0,91398.0,0.09308]
[1767569957221,0.02497501,91409.0,91398.0,0.09308]
[1767569957420,0.02497501,91408.0,91398.0,0.09308]
[1767569957629,0.010944,91411.0,91398.0,0.09308]
[1767569957630,0.02497501,91407.0,91398.0,0.09308]
[1767569957832,0.010944,91409.0,91398.0,0.09308]
[1767569958033,0.02497956,91408.0,91398.0,0.09308]
[1767569958222,0.02497956,91407.0,91398.0,0.09308]
[1767569958423,0.02497956,91406.0,91397.0,0.112923]
[1767569958623,0.010944,91409.0,91398.0,0.09308]
[1767569958822,0.02498529,91408.0,91398.0,0.09308]
[1767569959023,0.02498529,91407.0,91398.0,0.11646249]
[1767569959227,0.02498529,91406.0,91398.0,0.02338249]
[1767569959425,0.010944,91409.0,91398.0,0.11646249]
[1767569959729,0.010945,91407.0,91398.0,0.11646249]
[1767569959937,0.02499269,91406.0,91398.0,0.11646249]
[1767569960125,0.010945,91407.0,91398.0,0.09308]
[1767569960325,0.02499319,91406.0,91398.0,0.09308]
[1767569960524,0.02499319,91405.0,91398.0,0.09308]
[1767569960732,0.010945,91407.0,91398.0,0.09308]
[1767569961034,0.02500075,91406.0,91397.0,0.10740577]
[1767569961230,0.02500075,91405.0,91397.0,0.13078826]
[1767569961427,0.02500075,91404.0,91397.0,0.13078826]
[1767569961734,0.010945,91407.0,91397.0,0.13078826]
[1767569961934,0.02500988,91406.0,91397.0,0.13078826]
[1767569962131,0.02500988,91405.0,91397.0,0.13078826]
[1767569962433,0.02500988,91404.0,91397.0,0.13078826]
[1767569962633,0.010945,91407.0,91397.0,0.13078826]
[1767569962932,0.02501045,91406.0,91397.0,0.13078826]
[1767569963226,0.02501045,91405.0,91397.0,0.13078826]
[1767569963431,0.02501045,91404.0,91397.0,0.13078826]
[1767569963629,0.010945,91405.0,91397.0,0.09308]
[1767569963824,0.02501114,91404.0,91397.0,0.09308]
[1767569964031,0.010945,91405.0,91393.0,0.02338249]
[1767569964230,0.010945,91403.0,91394.0,0.09308]
[1767569964437,0.02501123,91402.0,91394.0,0.09308]
[1767569964637,0.09269489,91420.0,91401.0,0.02338249]
[1767569964935,0.02501222,91417.0,91401.0,0.02338249]
[1767569965135,0.02501222,91416.0,91401.0,0.02338249]
[1767569965436,0.02501222,91415.0,91401.0,0.02338249]
[1767569965631,0.03595622,91414.0,91401.0,0.02338249]
[1767569965930,0.02501222,91413.0,91400.0,0.08954051]
[1767569966134,0.02501222,91412.0,91400.0,0.08954051]
[1767569966334,0.02501222,91411.0,91400.0,0.08954051]
[1767569966538,0.02501222,91410.0,91400.0,0.08954051]
[1767569966738,0.02501222,91409.0,91400.0,0.112923]
[1767569966936,0.02501222,91408.0,91400.0,0.112923]
[1767569967238,0.02501222,91407.0,91400.0,0.112923]
[1767569967428,0.02501222,91406.0,91400.0,0.112923]
[1767569967627,0.02501222,91405.0,91400.0,0.112923]
[1767569967831,0.010944,91413.0,91400.0,0.112923]
[1767569968032,0.02501459,91412.0,91400.0,0.112923]
[1767569968233,0.02501459,91411.0,91400.0,0.112923]
[1767569968427,0.02501459,91410.0,91400.0,0.112923]
[1767569968633,0.02501459,91409.0,91400.0,0.087923]
[1767569968840,0.02501459,91408.0,91400.0,0.087923]
[1767569969034,0.02501459,91407.0,91400.0,0.087923]
[1767569969230,0.02501459,91406.0,91400.0,0.087923]
[1767569969432,0.02501459,91405.0,91400.0,0.087923]
[1767569969640,0.02501459,91404.0,91400.0,0.087923]
[1767569969829,0.010944,91413.0,91400.0,0.087923]
[1767569970030,0.02501906,91412.0,91401.0,0.02338249]
[1767569970342,0.02501906,91411.0,91401.0,0.02338249]
[1767569970640,0.010943,91416.0,91401.0,0.02338249]
[1767569970641,0.02501906,91410.0,91401.0,0.02338249]
[1767569970829,0.02501906,91409.0,91401.0,0.02338249]
[1767569971025,0.02501906,91408.0,91402.0,0.02472568]
[1767569971231,0.02501906,91407.0,91402.0,0.02472568]
[1767569971430,0.02501906,91406.0,91402.0,0.02472568]
[1767569971647,0.02501906,91405.0,91402.0,0.02472568]
[1767569971941,0.02501906,91404.0,91402.0,0.02472568]
[1767569972141,0.010943,91416.0,91402.0,0.02472568]
[1767569972336,0.0588558,91423.0,91411.0,0.02472568]
[1767569972542,0.010943,91424.0,91410.0,0.08342837]
[1767569974435,0.010943,91424.0,91411.0,0.02472568]
[1767569974638,0.010942,91427.0,91414.0,0.02472568]
[1767569975842,0.010943,91424.0,91407.0,0.11645284]
[1767569976045,0.010943,91424.0,91407.0,0.09008545]
[1767569976340,0.010943,91424.0,91407.0,0.07608545]
[1767569976938,0.010943,91424.0,91408.0,0.02636739]
[1767569977140,0.010942,91428.0,91408.0,0.02636739]
[1767569977534,0.010942,91430.0,91408.0,0.02636739]
[1767569977736,0.010942,91427.0,91408.0,0.02636739]
[1767569978334,0.010942,91427.0,91409.0,0.02636739]
[1767569979740,0.010942,91427.0,91409.0,0.11645284]
[1767569979940,0.010942,91427.0,91410.0,0.02636739]
[1767569980141,0.11576999,91431.0,91410.0,0.02636739]
[1767569980342,0.010942,91430.0,91411.0,0.02636739]
[1767569981244,0.11576999,91431.0,91411.0,0.02636739]
[1767569981245,0.010942,91428.0,91411.0,0.02636739]
[1767569983151,0.010942,91426.0,91411.0,0.02636739]
[1767569983946,0.010942,91426.0,91411.0,0.00936739]
[1767569984352,0.02475916,91425.0,91411.0,0.00936739]